bitfinex/quotes_BTCUSD_20250519
["timestamp","ask_amount","ask_price","bid_price","bid_amount"]
[1747675744719,0.01249947,105260.0,105250.0,0.54380607]
[1747675746097,0.02199912,105260.0,105250.0,0.54380607]
[1747675747453,0.01249947,105260.0,105250.0,0.54380607]
[1747675747663,0.003,105260.0,105250.0,0.54380607]
[1747675747898,0.01249947,105260.0,105250.0,0.54380607]
[1747675748525,0.04529947,105260.0,105250.0,0.54380607]
[1747675749726,0.04529947,105260.0,105250.0,0.40140607]
[1747675749894,0.09729886,105260.0,105250.0,0.54380607]
[1747675750095,0.10679887,105260.0,105250.0,0.54380607]
[1747675750291,0.11868009,105260.0,105250.0,0.39362407]
[1747675750507,0.11629897,105260.0,105250.0,0.59077807]
[1747675752560,0.11629897,105260.0,105250.0,0.51201607]
[1747675752934,0.10679878,105260.0,105250.0,0.51201607]
[1747675754510,0.39203709,105260.0,105250.0,0.01369622]
[1747675754730,0.38965597,105260.0,105250.0,0.01369622]
[1747675756524,0.2797656,105250.0,105240.0,0.00805957]
[1747675756769,0.377075,105250.0,105240.0,0.00805957]
[1747675757898,0.379075,105250.0,105240.0,0.002]
[1747675759134,0.380075,105250.0,105240.0,0.002]
[1747675759354,0.36553415,105250.0,105240.0,0.1920418]
[1747675759624,0.36553415,105250.0,105240.0,0.21104552]
[1747675759975,0.1755104,105250.0,105240.0,0.21104552]
[1747675760157,0.38453615,105250.0,105240.0,0.22054697]
[1747675760359,0.39403733,105250.0,105240.0,0.21104552]
[1747675760834,0.17551004,105250.0,105240.0,0.21104552]
[1747675761003,0.19451177,105250.0,105240.0,0.22054697]
[1747675761174,0.40353779,105250.0,105240.0,0.22054697]
[1747675761375,0.40353779,105250.0,105240.0,0.22054715]
[1747675761614,0.21351404,105250.0,105240.0,0.76893969]
[1747675761814,0.40353779,105250.0,105240.0,0.77844114]
[1747675762020,0.40353779,105250.0,105240.0,0.76893969]
[1747675762172,0.39403715,105250.0,105240.0,0.68284315]
[1747675762380,0.38453642,105250.0,105240.0,0.21104552]
[1747675763181,0.37503488,105250.0,105240.0,0.22054697]
[1747675763385,0.37503488,105250.0,105240.0,0.22054715]
[1747675763757,0.00950127,105240.0,105230.0,0.33781359]
[1747675763909,0.00950127,105240.0,105230.0,2.09906959]
[1747675764536,0.19455934,105250.0,105240.0,0.22804869]
[1747675764936,0.38458309,105250.0,105240.0,0.22804869]
[1747675765152,0.00204775,105250.0,105240.0,1.75568569]
[1747675765347,0.01154812,105250.0,105240.0,1.75568569]
[1747675765647,0.00204775,105250.0,105240.0,1.75568569]
[1747675765806,0.00954821,105250.0,105240.0,1.75568569]
[1747675766012,4.775e-05,105250.0,105240.0,1.75568569]
[1747675766214,0.00104775,105250.0,105240.0,1.82048569]
[1747675766654,0.00204775,105250.0,105240.0,1.82048569]
[1747675767070,0.18955961,105250.0,105240.0,0.5490457]
[1747675767298,0.37246393,105250.0,105240.0,0.34]
[1747675767498,0.38462366,105250.0,105240.0,0.34]
[1747675767980,0.38462366,105250.0,105230.0,0.02184069]
[1747675767981,0.2620437,105240.0,105230.0,0.02184069]
[1747675768141,0.3593531,105240.0,105230.0,0.02184069]
[1747675768343,0.3593531,105240.0,105230.0,0.21190055]
[1747675768549,0.3593531,105240.0,105230.0,0.02184069]
[1747675768750,0.3593531,105240.0,105230.0,0.36184069]
[1747675769359,0.37389395,105240.0,105230.0,0.02184069]
[1747675769558,0.38317644,105240.0,105230.0,0.02184069]
[1747675769811,0.38317644,105240.0,105220.0,0.002]
[1747675769812,0.27560352,105230.0,105220.0,0.002]
[1747675769941,0.37291292,105230.0,105220.0,0.002]
[1747675770698,0.38741985,105230.0,105220.0,0.002]
[1747675772400,0.38841985,105230.0,105220.0,0.002]
[1747675772606,0.38741985,105230.0,105220.0,0.002]
[1747675772801,0.39541985,105230.0,105220.0,0.002]
[1747675774780,0.380879,105230.0,105220.0,0.002]
[1747675774924,0.39541985,105230.0,105220.0,0.002]
[1747675775329,0.20581965,105230.0,105220.0,0.22058861]
[1747675775587,0.20581965,105230.0,105220.0,0.21108526]
[1747675775744,0.37687488,105230.0,105220.0,0.21108544]
[1747675776084,0.36737216,105230.0,105220.0,0.21108544]
[1747675777104,0.36737216,105230.0,105220.0,0.20158173]
[1747675777243,0.35786926,105230.0,105220.0,0.20158182]
[1747675777443,0.35786926,105230.0,105220.0,0.22058933]
[1747675777810,0.35786926,105230.0,105220.0,0.19207793]
[1747675778101,0.37241011,105230.0,105220.0,0.002]
[1747675780018,0.37241011,105230.0,105220.0,0.19207793]
[1747675781050,0.12935261,105230.0,105220.0,0.56058852]
[1747675781249,0.12431448,105230.0,105220.0,0.70306852]
[1747675781393,0.12431421,105230.0,105220.0,0.70106852]
[1747675781604,0.13381693,105230.0,105220.0,0.70106852]
[1747675781798,0.1053094,105230.0,105220.0,0.70106852]
[1747675782002,0.10681167,105230.0,105220.0,0.55858852]
[1747675782262,0.12819787,105230.0,105220.0,0.92678852]
[1747675782440,0.13019787,105230.0,105220.0,0.92678852]
[1747675782620,0.14170059,105230.0,105220.0,0.55827793]
[1747675782816,0.1512034,105230.0,105220.0,0.58678852]
[1747675783031,0.11081167,105230.0,105220.0,0.58678852]
[1747675783263,0.12031403,105230.0,105220.0,0.58678852]
[1747675783456,0.11081176,105230.0,105220.0,0.58678852]
[1747675783655,0.1013094,105230.0,105220.0,2.13334652]
[1747675783858,0.004,105230.0,105220.0,2.13334652]
[1747675784263,0.01350218,105230.0,105220.0,1.76514652]
[1747675784462,0.01350218,105230.0,105220.0,2.13334652]
[1747675785451,0.004,105230.0,105220.0,2.13334652]
[1747675786047,0.01350227,105230.0,105220.0,1.79154152]
[1747675786370,0.01350227,105230.0,105220.0,1.65393452]
[1747675787093,0.27884651,105230.0,105220.0,0.82607793]
[1747675787312,0.37377479,105230.0,105220.0,0.60035793]
[1747675787519,0.36427216,105230.0,105220.0,0.77844]
[1747675787726,0.36427216,105230.0,105220.0,0.90846]
[1747675788394,0.36427216,105230.0,105220.0,1.10804182]
[1747675788888,0.36427216,105230.0,105220.0,0.90846]
[1747675789024,0.36427216,105230.0,105220.0,0.893731]
[1747675789227,0.36427216,105230.0,105220.0,1.08380893]
[1747675789455,0.36427216,105230.0,105220.0,1.09331282]
[1747675789630,0.36931011,105230.0,105220.0,0.636]
[1747675789846,0.36931011,105230.0,105220.0,0.77844]
[1747675790508,0.36931011,105230.0,105210.0,0.23781464]
[1747675790713,0.20910503,105210.0,105200.0,0.63646259]
[1747675790939,0.32542293,105210.0,105200.0,1.14347386]
[1747675791147,0.32542293,105210.0,105200.0,1.15297911]
[1747675791367,0.32542293,105210.0,105200.0,1.16248427]
[1747675791576,0.32542293,105210.0,105200.0,1.00666286]
[1747675791792,0.32542293,105210.0,105200.0,0.37526811]
[1747675792047,0.32542293,105210.0,105200.0,1.1952052]
[1747675792476,0.32542293,105210.0,105200.0,1.18569995]
[1747675792683,0.32542293,105210.0,105200.0,1.14806995]
[1747675792882,0.32542293,105210.0,105200.0,1.1294252]
[1747675793094,0.32542293,105210.0,105200.0,1.52587355]
[1747675793526,0.32542293,105210.0,105200.0,0.74847355]
[1747675793731,0.32542293,105210.0,105200.0,1.36079055]
[1747675793958,0.32542293,105210.0,105200.0,0.75597555]
[1747675794169,0.11631763,105210.0,105200.0,1.50803571]
[1747675794370,0.12582215,105210.0,105200.0,0.72955508]
[1747675794626,0.11631763,105210.0,105200.0,1.50803508]
[1747675795030,0.12582206,105210.0,105200.0,1.50803508]
[1747675795270,0.12582206,105210.0,105200.0,0.72955508]
[1747675795482,0.12582206,105210.0,105200.0,1.50803508]
[1747675795694,0.31591805,105210.0,105200.0,1.50803508]
[1747675795880,0.13532667,105210.0,105200.0,1.50803508]
[1747675796137,0.39100378,105210.0,105200.0,0.35421909]
[1747675796352,0.38415528,105210.0,105200.0,0.01421909]
[1747675796570,0.38415528,105210.0,105200.0,0.01211522]
[1747675796786,0.38415528,105210.0,105200.0,0.38031522]
[1747675797440,0.38415528,105210.0,105200.0,0.37831522]
[1747675797645,0.38515528,105210.0,105200.0,0.37831522]
[1747675798409,0.37565085,105210.0,105200.0,0.37831522]
[1747675798824,0.70029233,105210.0,105200.0,0.00247857]
[1747675802664,0.37565085,105210.0,105200.0,0.00247857]
[1747675803011,0.71565085,105210.0,105200.0,0.00239078]
[1747675803470,0.37565085,105210.0,105200.0,0.00239078]
[1747675803693,0.36111,105210.0,105200.0,0.00239078]
[1747675804146,0.37565085,105210.0,105200.0,0.00239078]
[1747675804362,0.32881,105210.0,105200.0,0.19250484]
[1747675804661,0.32881,105210.0,105200.0,0.00239078]
[1747675804868,0.29791,105210.0,105200.0,0.20201054]
[1747675805086,0.31245085,105210.0,105200.0,0.35399615]
[1747675805305,0.12682242,105210.0,105200.0,0.37300656]
[1747675805759,0.12682224,105210.0,105200.0,0.37300656]
[1747675805977,0.13632685,105210.0,105200.0,0.37300656]
[1747675806459,0.33830875,105210.0,105200.0,0.21151615]
[1747675806677,0.30741479,105210.0,105200.0,0.19250484]
[1747675806900,0.0983094,105210.0,105200.0,0.22102149]
[1747675807127,0.11731799,105210.0,105200.0,0.37300656]
[1747675807552,0.1268226,105210.0,105200.0,0.37300656]
[1747675807769,0.11731799,105210.0,105200.0,0.37300656]
[1747675808443,0.1268226,105210.0,105200.0,0.37300656]
[1747675808666,0.01050416,105210.0,105200.0,0.71300656]
[1747675808930,0.001,105210.0,105200.0,0.77880656]
[1747675809145,0.001,105210.0,105200.0,1.47032856]
[1747675810540,0.001,105210.0,105200.0,1.21984656]
[1747675810752,0.02000832,105210.0,105200.0,0.71925218]
[1747675810999,0.02000832,105210.0,105200.0,0.50710567]
[1747675811219,0.02000832,105210.0,105200.0,0.69721973]
[1747675811439,0.02951275,105210.0,105200.0,0.70672507]
[1747675811994,0.02000832,105210.0,105200.0,0.57375077]
[1747675812266,0.02951275,105210.0,105200.0,1.07404677]
[1747675812587,0.02951275,105210.0,105200.0,0.93156677]
[1747675812791,0.02951275,105210.0,105200.0,1.07404677]
[1747675813442,0.02000832,105210.0,105200.0,1.07404677]
[1747675813645,0.02951275,105210.0,105200.0,1.07404677]
[1747675813851,0.02951275,105210.0,105200.0,0.93156677]
[1747675814063,0.02951275,105210.0,105200.0,0.83124187]
[1747675814266,0.02951275,105210.0,105200.0,0.72517179]
[1747675814482,0.35268651,105210.0,105200.0,0.00624562]
[1747675814708,0.38385519,105210.0,105200.0,0.00624562]
[1747675814945,0.14871835,105210.0,105200.0,0.00624562]
[1747675815183,0.30741434,105210.0,105200.0,0.00624562]
[1747675815456,0.34385085,105210.0,105200.0,0.00624562]
[1747675815686,0.71435085,105210.0,105200.0,0.00624562]
[1747675816119,1.11636551,105210.0,105200.0,0.00624562]
[1747675816583,0.71435085,105210.0,105200.0,0.00624562]
[1747675816827,0.23319171,105190.0,105180.0,0.01914416]
[1747675817059,0.32099514,105190.0,105180.0,0.19993035]
[1747675817266,0.31596089,105190.0,105180.0,0.21894473]
[1747675817501,0.31596089,105190.0,105180.0,0.20943768]
[1747675817748,0.30645465,105190.0,105180.0,0.20943768]
[1747675818306,0.29694814,105190.0,105180.0,0.19993035]
[1747675818501,0.29694814,105190.0,105180.0,0.21994528]
[1747675818713,0.29694814,105190.0,105180.0,0.22945261]
[1747675819138,0.33288239,105190.0,105180.0,0.01178014]
[1747675819347,0.36318239,105190.0,105180.0,0.01178014]
[1747675819547,0.31318239,105190.0,105180.0,0.01178014]
[1747675820149,0.31318239,105190.0,105180.0,0.00414349]
[1747675820990,0.65318239,105190.0,105180.0,0.00414349]
[1747675821992,0.97782387,105190.0,105180.0,0.00414349]
[1747675822190,0.97782387,105190.0,105180.0,0.00314349]
[1747675822357,1.02985786,105190.0,105180.0,0.00214349]
[1747675822559,0.99782387,105190.0,105180.0,0.00214349]
[1747675823226,0.99782387,105190.0,105160.0,0.002]
[1747675823452,0.72253473,105170.0,105160.0,0.0021436]
[1747675824416,0.38253473,105170.0,105160.0,0.0021436]
[1747675824778,0.38453473,105170.0,105160.0,0.0021436]
[1747675825961,0.38653473,105170.0,105160.0,0.0021436]
[1747675829320,0.35503473,105170.0,105160.0,0.0021436]
[1747675830570,0.32503473,105170.0,105160.0,0.0021436]
[1747675832375,0.35503473,105170.0,105160.0,0.0021436]
[1747675833354,0.38803473,105170.0,105160.0,0.0021436]
[1747675833573,0.71267621,105170.0,105160.0,0.0021436]
[1747675834365,0.38803473,105170.0,105160.0,0.0021436]
[1747675836067,0.71267621,105170.0,105160.0,0.0021436]
[1747675837024,0.38803473,105170.0,105160.0,0.0021436]
[1747675837205,0.71267621,105170.0,105160.0,0.0021436]
[1747675837639,0.93519621,105170.0,105160.0,0.0021436]
[1747675838225,0.93319621,105170.0,105160.0,0.0021436]
[1747675838432,0.93619621,105170.0,105160.0,0.0021436]
[1747675838644,0.61155473,105170.0,105160.0,0.0021436]
[1747675838828,0.93619621,105170.0,105160.0,0.0021436]
[1747675839034,0.93419621,105170.0,105160.0,0.0021436]
[1747675839270,0.93719621,105170.0,105160.0,0.0021436]
[1747675840393,0.61255473,105170.0,105160.0,0.0021436]
[1747675840814,0.93719621,105170.0,105160.0,0.0021436]
[1747675841341,0.61255473,105170.0,105160.0,0.0021436]
[1747675841573,0.22824371,105150.0,105140.0,0.61194414]
[1747675841779,0.32555311,105150.0,105140.0,0.61203525]
[1747675841981,0.32555311,105150.0,105140.0,0.62154583]
[1747675842205,0.32555311,105150.0,105140.0,0.61203525]
[1747675842410,0.31604371,105150.0,105140.0,0.61203525]
[1747675842627,0.30653403,105150.0,105140.0,0.61303525]
[1747675843043,0.19018638,105160.0,105150.0,0.20922445]
[1747675843244,0.20922354,105150.0,105140.0,0.61303489]
[1747675844080,0.19971414,105150.0,105140.0,0.60352422]
[1747675844285,0.19971414,105150.0,105140.0,0.61203507]
[1747675844503,0.19971414,105150.0,105140.0,0.62154583]
[1747675844915,0.0095094,105150.0,105140.0,0.63105632]
[1747675845134,0.04041982,105150.0,105140.0,0.63105632]
[1747675845338,0.02852866,105150.0,105140.0,0.63741612]
[1747675845543,0.03803861,105150.0,105140.0,0.63741612]
[1747675845748,0.04992977,105150.0,105140.0,0.63741612]
[1747675845946,0.23775457,105150.0,105140.0,0.63741612]
[1747675846143,0.03803989,105150.0,105140.0,0.63741612]
[1747675846357,0.01901972,105150.0,105140.0,0.63741612]
[1747675846558,0.30203663,105160.0,105140.0,0.63741612]
[1747675846559,0.14037701,105160.0,105150.0,0.6328439]
[1747675846768,0.14988623,105160.0,105150.0,0.6328439]
[1747675846968,0.34007261,105160.0,105150.0,0.62333431]
[1747675847174,0.13086788,105160.0,105150.0,0.62018443]
[1747675847380,0.13086788,105160.0,105150.0,0.63920388]
[1747675847600,0.3400727,105160.0,105150.0,0.63920406]
[1747675847831,0.33156402,105160.0,105150.0,0.54607448]
[1747675848030,0.33156402,105160.0,105150.0,0.57460424]
[1747675848244,0.14137755,105160.0,105150.0,0.58411392]
[1747675848611,0.33156393,105160.0,105150.0,0.58411392]
[1747675848827,0.33156393,105160.0,105150.0,0.56509447]
[1747675849052,0.33256393,105160.0,105150.0,0.56509447]
[1747675850137,0.32305498,105160.0,105150.0,0.54607448]
[1747675850361,0.31354585,105160.0,105150.0,0.3463598]
[1747675850579,0.34464585,105160.0,105150.0,0.3463598]
[1747675850813,0.37684585,105160.0,105150.0,0.3463598]
[1747675852550,0.37684585,105160.0,105150.0,0.0063598]
[1747675852774,0.36733663,105160.0,105140.0,0.15729766]
[1747675852977,0.29940502,105150.0,105130.0,0.44288297]
[1747675853183,0.2970239,105150.0,105130.0,0.44288297]
[1747675853394,0.22113569,105140.0,105130.0,0.22641167]
[1747675853606,0.20924426,105140.0,105130.0,0.33279983]
[1747675853812,0.01902306,105130.0,105120.0,0.35393991]
[1747675854030,0.01902306,105130.0,105120.0,0.49649991]
[1747675854225,0.02853491,105130.0,105120.0,0.49649991]
[1747675854472,0.02853555,105130.0,105120.0,0.50601329]
[1747675854698,0.2187762,105130.0,105120.0,0.36345338]
[1747675854910,0.2167762,105130.0,105120.0,0.50601338]
[1747675855091,0.2167762,105130.0,105120.0,0.49650099]
[1747675855389,0.2167762,105130.0,105120.0,0.45618833]
[1747675855582,0.2167762,105130.0,105120.0,0.47521338]
[1747675856002,0.2167762,105130.0,105120.0,0.44671338]
[1747675856387,0.2167762,105130.0,105120.0,0.44468391]
[1747675856606,0.2167762,105130.0,105120.0,0.44768391]
[1747675856826,0.01902324,105130.0,105120.0,0.44955902]
[1747675857033,0.2306688,105130.0,105120.0,0.51295902]
[1747675857266,0.23779971,105130.0,105120.0,0.51295902]
[1747675857478,0.02853427,105130.0,105120.0,0.51295902]
[1747675857690,0.23066789,105130.0,105120.0,0.50344672]
[1747675857914,0.22828677,105130.0,105120.0,0.50344672]
[1747675858316,0.21877556,105130.0,105120.0,0.48442194]
[1747675858671,0.21877556,105130.0,105120.0,0.49393451]
[1747675859694,0.20926408,105130.0,105120.0,0.49393451]
[1747675860292,0.20926408,105130.0,105120.0,0.46363451]
[1747675862371,0.2970619,105130.0,105120.0,0.06920795]
[1747675862568,0.34400275,105130.0,105120.0,0.06920795]
[1747675863054,0.37470275,105130.0,105120.0,0.06920795]
[1747675863464,0.37470275,105130.0,105120.0,0.06620795]
[1747675866645,0.37470275,105130.0,105120.0,0.07260844]
[1747675867274,0.37450862,105130.0,105120.0,0.07260844]
[1747675867489,0.31140862,105130.0,105120.0,0.26286719]
[1747675867703,0.32559681,105130.0,105120.0,0.29140508]
[1747675867908,0.30657393,105130.0,105120.0,0.27238003]
[1747675868148,0.30657393,105130.0,105120.0,0.28189269]
[1747675868359,0.28755005,105130.0,105120.0,0.27238012]
[1747675868592,0.28755005,105130.0,105120.0,0.07260844]
[1747675869226,0.31945005,105130.0,105120.0,0.07260844]
[1747675869465,0.3339909,105130.0,105120.0,0.07260844]
[1747675869699,0.3665909,105130.0,105120.0,0.07260844]
[1747675870827,0.3665909,105130.0,105120.0,0.06620795]
[1747675877428,0.3665909,105130.0,105120.0,0.01870795]
[1747675879078,0.28755005,105130.0,105120.0,0.01870795]
[1747675879284,0.29706199,105130.0,105120.0,0.21847954]
[1747675879502,0.32111451,105130.0,105120.0,0.27700491]
[1747675879701,0.31608569,105130.0,105120.0,0.31971721]
[1747675879906,0.31608569,105130.0,105120.0,0.31971739]
[1747675880110,0.31608569,105130.0,105120.0,0.09944943]
[1747675880312,0.31608569,105130.0,105120.0,0.26790944]
[1747675880933,0.31608569,105130.0,105120.0,0.27742183]
[1747675881132,0.31608569,105130.0,105120.0,0.00639987]
[1747675881133,0.38671487,105130.0,105120.0,0.00639987]
[1747675883149,0.78872953,105130.0,105120.0,0.00639987]
[1747675883581,0.46408805,105130.0,105120.0,0.00639987]
[1747675884370,0.46608805,105130.0,105120.0,0.00639987]
[1747675884992,0.39471487,105130.0,105120.0,0.00739987]
[1747675885428,1.13672953,105130.0,105120.0,0.00739987]
[1747675886112,0.2093039,105110.0,105100.0,0.002]
[1747675886318,0.93079563,105110.0,105100.0,0.0024794]
[1747675886730,1.27079563,105110.0,105100.0,0.0024794]
[1747675886938,1.28079563,105110.0,105100.0,0.0024794]
[1747675887157,0.95615415,105110.0,105100.0,0.0024794]
[1747675887572,1.28079563,105110.0,105100.0,0.0024794]
[1747675887788,0.73875415,105110.0,105100.0,0.0024794]
[1747675887999,0.95015415,105110.0,105100.0,0.0024794]
[1747675888200,0.96415415,105110.0,105100.0,0.0024794]
[1747675888440,1.28879563,105110.0,105100.0,0.0024794]
[1747675888645,0.96415415,105110.0,105100.0,0.0024794]
[1747675888846,1.28879563,105110.0,105100.0,0.0024794]
[1747675889051,0.96415415,105110.0,105100.0,0.0024794]
[1747675889255,1.28879563,105110.0,105100.0,0.0024794]
[1747675889638,0.96419415,105110.0,105100.0,0.0024794]
[1747675890897,0.73275415,105110.0,105100.0,0.0024794]
[1747675891101,0.95419415,105110.0,105100.0,0.0024794]
[1747675891759,0.89207821,105110.0,105100.0,0.0024794]
[1747675891979,1.11351821,105110.0,105100.0,0.0024794]
[1747675892196,1.03614503,105110.0,105100.0,0.0024794]
[1747675892415,1.29883563,105110.0,105100.0,0.0024794]
[1747675893063,1.28883563,105110.0,105100.0,0.0024794]
[1747675893275,1.27483563,105110.0,105100.0,0.0024794]
[1747675893489,1.27083563,105110.0,105100.0,0.0024794]
[1747675893711,1.27583563,105110.0,105100.0,0.0034794]
[1747675893930,0.95819415,105110.0,105100.0,0.0034794]
[1747675894147,1.28283563,105110.0,105100.0,0.0034794]
[1747675894359,1.29283563,105110.0,105100.0,0.0034794]
[1747675894591,1.28283563,105110.0,105100.0,0.0034794]
[1747675894809,1.29283563,105110.0,105100.0,0.0034794]
[1747675895021,1.29283563,105110.0,105060.0,0.0613794]
[1747675895022,0.22342563,105070.0,105060.0,0.0613794]
[1747675895247,0.11634369,105070.0,105060.0,0.28981917]
[1747675895461,0.22841768,105070.0,105060.0,0.27078344]
[1747675895679,0.20938394,105070.0,105060.0,0.0613794]
[1747675896125,0.20938394,105070.0,105060.0,0.26126517]
[1747675896342,0.20938394,105070.0,105060.0,0.27092714]
[1747675896566,0.19986666,105070.0,105060.0,0.0615231]
[1747675896784,0.19134929,105070.0,105060.0,0.07404147]
[1747675896990,0.19134929,105070.0,105060.0,0.0655231]
[1747675899235,0.29103981,105070.0,105060.0,0.0354231]
[1747675899410,0.30319954,105070.0,105060.0,0.0354231]
[1747675899623,0.30319954,105070.0,105060.0,0.0046231]
[1747675900456,0.36603187,105070.0,105060.0,0.0046231]
[1747675900667,0.28865869,105070.0,105060.0,0.0046231]
[1747675901284,0.30319954,105070.0,105060.0,0.0046231]
[1747675910411,0.35716995,105070.0,105060.0,0.0046231]
[1747675910607,0.30319954,105070.0,105060.0,0.0046231]
[1747675911075,0.33339954,105070.0,105060.0,0.0046231]
[1747675911604,0.30319954,105070.0,105060.0,0.0046231]
[1747675911821,0.36409954,105070.0,105060.0,0.0046231]
[1747675915248,0.36409954,105070.0,105060.0,0.0036231]
[1747675917194,0.36409954,105070.0,105060.0,0.0366231]
[1747675917195,0.28865869,105070.0,105060.0,0.0366231]
[1747675917421,0.28865869,105070.0,105060.0,0.0036231]
[1747675917633,0.30319954,105070.0,105060.0,0.0036231]
[1747675918733,0.19988567,105060.0,105050.0,2.13863507]
[1747675918943,0.29719507,105060.0,105050.0,2.12925983]
[1747675919181,0.29719507,105060.0,105050.0,2.1482981]
[1747675919434,0.29719507,105060.0,105050.0,2.15781683]
[1747675919435,0.01903627,105060.0,105050.0,2.15781683]
[1747675919637,0.01903627,105060.0,105050.0,2.16733547]
[1747675919854,0.01903627,105060.0,105050.0,2.17033547]
[1747675920440,0.01903555,105060.0,105050.0,3.31934475]
[1747675920644,0.02003555,105060.0,105050.0,3.32234475]
[1747675920849,0.23895732,105060.0,105050.0,3.44598756]
[1747675921374,0.23895732,105060.0,105050.0,3.36100856]
[1747675921784,0.03907155,105060.0,105050.0,3.36100856]
[1747675922000,0.03907155,105060.0,105050.0,3.3705272]
[1747675922201,0.03907155,105060.0,105050.0,3.7105272]
[1747675922202,0.001,105060.0,105050.0,3.7105272]
[1747675922411,0.02003519,105060.0,105050.0,3.7105272]
[1747675922606,0.02955301,105060.0,105050.0,3.7105272]
[1747675922948,0.03907101,105060.0,105050.0,3.71816385]
[1747675924415,0.24381576,105060.0,105050.0,2.63351595]
[1747675924659,0.21040386,105060.0,105050.0,2.41301595]
[1747675924784,0.21040386,105060.0,105050.0,2.62557648]
[1747675925013,0.21040386,105060.0,105050.0,2.29251095]
[1747675925188,0.21040386,105060.0,105050.0,2.43519095]
[1747675925633,0.21040386,105060.0,105050.0,2.40439095]
[1747675925962,0.21040386,105060.0,105050.0,2.61381475]
[1747675926165,0.21040386,105060.0,105050.0,2.64421493]
[1747675926354,0.21040386,105060.0,105050.0,2.75723993]
[1747675926534,0.20088577,105060.0,105050.0,2.63469575]
[1747675926743,0.20088577,105060.0,105050.0,2.50153493]
[1747675927099,0.1913674,105060.0,105050.0,2.03179095]
[1747675927484,0.1913674,105060.0,105050.0,2.24121493]
[1747675927688,0.1913674,105060.0,105050.0,1.88911095]
[1747675927929,0.2886768,105060.0,105050.0,2.03179095]
[1747675928141,0.2886768,105060.0,105050.0,1.88911095]
[1747675928142,0.3211768,105060.0,105050.0,1.88911095]
[1747675928355,0.3211768,105060.0,105050.0,2.03179095]
[1747675930741,0.3211768,105060.0,105050.0,2.0241543]
[1747675931842,0.3527768,105060.0,105050.0,1.8814743]
[1747675933277,0.36731765,105060.0,105050.0,1.8814743]
[1747675936919,0.33571765,105060.0,105050.0,1.8814743]
[1747675940360,0.36581765,105060.0,105050.0,2.0241543]
[1747675943125,0.33571765,105060.0,105050.0,2.0241543]
[1747675944115,0.33571765,105060.0,105050.0,1.8814743]
[1747675944357,0.33571765,105060.0,105050.0,2.0241543]
[1747675948211,0.33571765,105060.0,105050.0,2.0141543]
[1747675948962,0.36601765,105060.0,105050.0,2.0141543]
[1747675950189,0.33571765,105060.0,105050.0,2.0141543]
[1747675955676,0.33571765,105060.0,105050.0,2.02076908]
[1747675955886,0.2886768,105060.0,105050.0,2.02076908]
[1747675956089,0.2886768,105060.0,105050.0,2.24305461]
[1747675956296,0.2886768,105060.0,105050.0,2.05266908]
[1747675957169,0.2886768,105060.0,105050.0,3.03545534]
[1747675957170,0.001,105060.0,105050.0,3.03545534]
[1747675957392,0.02003537,105060.0,105050.0,3.03545534]
[1747675957563,0.03907146,105060.0,105050.0,3.03545534]
[1747675957764,0.03907146,105060.0,105050.0,3.04489812]
[1747675958186,0.04858973,105060.0,105050.0,3.04489821]
[1747675958393,0.03907137,105060.0,105050.0,3.05441685]
[1747675958804,0.02003537,105060.0,105050.0,3.05441685]
[1747675959029,0.02955328,105060.0,105050.0,3.05441685]
[1747675959369,0.03907137,105060.0,105050.0,3.06451784]
[1747675960373,0.04858964,105060.0,105050.0,3.06451784]
[1747675960578,0.03907137,105060.0,105050.0,2.87605284]
[1747675960788,0.03907137,105060.0,105050.0,3.01873284]
[1747675961005,0.04858955,105060.0,105050.0,3.01873284]
[1747675961457,0.03907137,105060.0,105050.0,3.01873284]
[1747675961664,0.02955337,105060.0,105050.0,3.01873284]
[1747675962477,0.03907155,105060.0,105050.0,3.01873284]
[1747675962707,0.02955337,105060.0,105050.0,3.01873284]
[1747675963071,0.03907146,105060.0,105050.0,3.01873284]
[1747675964246,0.02955382,105060.0,105050.0,2.8526362]
[1747675964453,0.039072,105060.0,105050.0,2.8526362]
[1747675965724,0.039072,105060.0,105050.0,2.86215484]
[1747675967880,0.02003591,105060.0,105050.0,2.86215484]
[1747675969012,0.02955382,105060.0,105050.0,2.86215484]
[1747675969188,0.02955382,105060.0,105050.0,2.87047496]
[1747675971543,0.21992122,105060.0,105050.0,2.71827632]
[1747675971754,0.30771325,105060.0,105050.0,2.24595297]
[1747675971964,0.33841325,105060.0,105050.0,2.5790185]
[1747675972173,0.36961325,105060.0,105050.0,1.89651019]
[1747675972364,0.36961325,105060.0,105050.0,2.03919019]
[1747675972792,0.36961325,105060.0,105050.0,2.37919019]
[1747675973225,0.36961325,105060.0,105050.0,2.23651019]
[1747675973440,0.3841541,105060.0,105050.0,2.21808908]
[1747675973656,0.3841541,105060.0,105050.0,2.36076908]
[1747675973871,0.3841541,105060.0,105050.0,1.87808908]
[1747675974689,0.3841541,105060.0,105050.0,1.8714743]
[1747675975382,0.3841541,105060.0,105050.0,1.8654743]
[1747675975583,0.3831541,105060.0,105050.0,1.8654743]
[1747675975786,0.3841541,105060.0,105050.0,1.8654743]
[1747675976223,0.3851541,105060.0,105050.0,1.8654743]
[1747675982663,0.3861541,105060.0,105050.0,1.8654743]
[1747675983282,0.3861541,105060.0,105050.0,2.05585983]
[1747675983492,0.3861541,105060.0,105050.0,1.8654743]
[1747675990900,0.3539541,105060.0,105050.0,1.8654743]
[1747675991349,0.3539541,105060.0,105050.0,2.0653791]
[1747675991581,0.002,105090.0,105070.0,0.04191683]
[1747675991839,0.002,105090.0,105080.0,1.78151562]
[1747675992046,0.002,105090.0,105080.0,1.81108433]
[1747675992231,0.21134318,105090.0,105080.0,0.69255494]
[1747675992471,0.03054559,105090.0,105080.0,0.73353858]
[1747675992685,0.01151492,105090.0,105080.0,0.7430545]
[1747675992895,0.04006115,105090.0,105080.0,0.72402248]
[1747675993118,0.04006115,105090.0,105080.0,0.70155983]
[1747675993335,0.02203012,105090.0,105080.0,0.70156001]
[1747675993548,0.21134373,105090.0,105080.0,0.67301117]
[1747675993760,0.21134373,105090.0,105080.0,0.68847072]
[1747675993976,0.21234373,105090.0,105080.0,0.68095417]
[1747675994184,0.34135313,105090.0,105080.0,0.15832153]
[1747675994426,0.35589398,105090.0,105080.0,0.15832153]
[1747675994632,0.46646716,105090.0,105080.0,0.15832153]
[1747675995062,0.38909398,105090.0,105080.0,0.15832153]
[1747675995285,0.35589398,105090.0,105080.0,0.15832153]
[1747675995465,0.34637878,105090.0,105080.0,0.15237853]
[1747675996024,0.34637878,105090.0,105080.0,0.00969853]
[1747675996223,0.34637878,105090.0,105080.0,0.003]
[1747675996843,0.34637878,105090.0,105080.0,0.19333117]
[1747675997057,0.34637878,105090.0,105080.0,0.003]
[1747675997255,0.34637878,105090.0,105080.0,0.0089438]
[1747675997847,0.37657878,105090.0,105080.0,0.0089438]
[1747675998055,0.37657878,105090.0,105080.0,0.0088938]
[1747675998868,0.34637878,105090.0,105080.0,0.0088938]
[1747676001051,0.40004628,105090.0,105080.0,0.0088938]
[1747676001257,0.45445196,105090.0,105080.0,0.0088938]
[1747676001921,0.45445196,105090.0,105080.0,0.00295]